[Event "GER-ch Youth ODJM 2019"]
[Site "Willingen"]
[Date "2019.06.10"]
[Round "3.8"]
[White "Kolb, Tobias"]
[Black "Knudsen, Simon"]
[Result "1/2-1/2"]
[ECO "B26"]
[WhiteElo "1915"]
[BlackElo "2166"]
[Annotator "NA"]
[PlyCount "46"]
[EventDate "2019.06.07"]
[EventType "swiss"]
[EventRounds "9"]
[EventCountry "GER"]
[SourceTitle "playchess.com"]
[Source "ChessBase"]
[SourceQuality "1"]
[TimeControl "40/5400+30:1800+30"]

1. e4 {[%emt 0:00:00]} g6 {[%emt 0:00:00]} 2. Nc3 {[%emt 0:00:00]} Bg7 {[%emt 0:00:00]} 3. g3 {[%emt 0:00:00]} c5 {[%emt 0:00:21]} 4. Bg2 {[%emt 0:00:00]} Nc6 {[%emt 0:00:06]} 5. d3 {[%emt 0:00:00]} d6 {[%emt 0:02:25]} 6. Be3 {[%emt 0:00:00]} e5 {[%emt 0:12:09]} 7. Qd2 {[%emt 0:03:51]} Nd4 {[%emt 0:00:17]} 8. Nd1 {[%emt 0:06:53]} Ne7 {[%emt 0:00:46]} 9. c3 {[%emt 0:00:08]} Ndc6 {[%emt 0:00:25]} 10. Bh6 {[%emt 0:00:14]} O-O {[%emt 0:08:05]} 11. Bxg7 {[%emt 0:03:52]} Kxg7 {[%emt 0:00:12]} 12. Ne2 {[%emt 0:02:08]} d5 {[%emt 0:00:13]} 13. exd5 {[%emt 0:05:03]} Nxd5 {[%emt 0:02:54]} 14. O-O {[%emt 0:08:22]} Bf5 {[%emt 0:03:01]} 15. d4 {[%emt 0:09:48]} cxd4 {[%emt 0:22:19]} 16. cxd4 {[%emt 0:00:53]} exd4 {[%emt 0:00:09]} 17. Nxd4 {[%emt 0:00:20]} Nxd4 {[%emt 0:00:15]} 18. Qxd4+ {[%emt 0:00:04]} Nf6 {[%emt 0:00:07]} 19. Qxd8 {[%emt 0:21:42]} Raxd8 {[%emt 0:00:06]} 20. Ne3 {[%emt 0:04:53]} Be6 {[%emt 0:00:18]} 21. b3 {[%emt 0:00:46]} b6 {[%emt 0:00:25]} 22. Rfd1 {[%emt 0:00:39]} Rxd1+ {[%emt 0:00:15]} 23. Rxd1 {[%emt 0:00:03]} Rc8 {[%emt 0:00:10] normal} 1/2-1/2

[Event "GER-ch Youth ODJM 2019"]
[Site "Willingen"]
[Date "2019.06.10"]
[Round "3.9"]
[White "Weber, Samuel"]
[Black "Brunner, Tobias"]
[Result "1/2-1/2"]
[ECO "A20"]
[WhiteElo "2160"]
[BlackElo "2017"]
[Annotator "ChessBase"]
[PlyCount "77"]
[EventDate "2019.06.07"]
[EventType "swiss"]
[EventRounds "9"]
[EventCountry "GER"]
[SourceTitle "playchess.com"]
[Source "ChessBase"]
[SourceQuality "1"]
[TimeControl "40/5400+30:1800+30"]

1. c4 {[%emt 0:00:00]} e5 {[%emt 0:00:00]} 2. g3 {[%emt 0:00:00]} Nc6 {[%emt 0:00:30]} 3. Bg2 {[%emt 0:01:57]} f5 {[%emt 0:01:17]} 4. Nc3 {[%emt 0:07:51]} Nf6 {[%emt 0:01:57]} 5. d3 {[%emt 0:01:01]} Bc5 {[%emt 0:00:44]} 6. e3 {[%emt 0:02:25]} d6 {[%emt 0:03:57]} 7. Nge2 {[%emt 0:00:25]} O-O {[%emt 0:00:44]} 8. O-O {[%emt 0:01:04]} a6 {[%emt 0:02:13]} 9. a3 {[%emt 0:02:06]} Qe8 {[%emt 0:10:10]} 10. b4 {[%emt 0:02:27]} Ba7 {[%emt 0:01:43]} 11. b5 {[%emt 0:06:13]} axb5 {[%emt 0:00:28]} 12. Nxb5 {[%emt 0:00:15]} Bb6 {[%emt 0:01:51]} 13. Rb1 {[%emt 0:02:54]} Qe7 {[%emt 0:06:06]} 14. Nec3 {[%emt 0:03:28]} Kh8 {[%emt 0:08:35]} 15. Na4 {[%emt 0:03:34]} Ba5 {[%emt 0:01:11]} 16. Nac3 {[%emt 0:09:16]} Nd8 {[%emt 0:05:09]} 17. Nd5 {[%emt 0:18:04]} Nxd5 {[%emt 0:03:29]} 18. cxd5 {[%emt 0:00:01]} Bd7 {[%emt 0:06:44]} 19. Qc2 {[%emt 0:05:32]} Bxb5 {[%emt 0:02:13]} 20. Rxb5 {[%emt 0:00:23]} Bb6 {[%emt 0:00:14]} 21. a4 {[%emt 0:02:20]} Ra5 {[%emt 0:04:30]} 22. Qc4 {[%emt 0:03:10]} Qd7 {[%emt 0:01:48]} 23. Bd2 {[%emt 0:01:22]} Rxb5 {[%emt 0:04:06]} 24. axb5 {[%emt 0:01:52]} Nf7 {[%emt 0:00:49]} 25. Ra1 {[%emt 0:00:37]} Nh6 {[%emt 0:00:50]} 26. h3 {[%emt 0:04:45]} Ng8 {[%emt 0:00:37]} 27. Ra4 {[%emt 0:01:56]} Ne7 {[%emt 0:02:23]} 28. d4 {[%emt 0:03:45]} exd4 {[%emt 0:01:51]} 29. exd4 {[%emt 0:00:06]} Ng6 {[%emt 0:00:48]} 30. h4 {[%emt 0:00:23]} Qf7 {[%emt 0:01:55]} 31. h5 {[%emt 0:00:56]} Ne7 {[%emt 0:00:10]} 32. Bf3 {[%emt 0:00:47]} h6 {[%emt 0:00:40]} 33. Kg2 {[%emt 0:01:29]} f4 {[%emt 0:04:11]} 34. g4 {[%emt 0:00:46]} Qf6 {[%emt 0:03:48]} 35. Qe2 {[%emt 0:00:51]} Qg5 {[%emt 0:00:50]} 36. Qe4 {[%emt 0:05:32]} g6 {[%emt 0:03:13]} 37. hxg6 {[%emt 0:06:16]} Nxg6 {[%emt 0:00:14]} 38. Kf1 {[%emt 0:00:30]} Nh4 {[%emt 0:01:09]} 39. Bd1 {[%emt 0:00:57] normal} 1/2-1/2

[Event "GER-ch Youth ODJM 2019"]
[Site "Willingen"]
[Date "2019.06.10"]
[Round "3.10"]
[White "Ronge, Tim Hendrick"]
[Black "Gerlach, Felix Tobias"]
[Result "0-1"]
[ECO "A65"]
[WhiteElo "2143"]
[BlackElo "2079"]
[Annotator "ChessBase"]
[PlyCount "72"]
[EventDate "2019.06.07"]
[EventType "swiss"]
[EventRounds "9"]
[EventCountry "GER"]
[SourceTitle "playchess.com"]
[Source "ChessBase"]
[SourceQuality "1"]
[TimeControl "40/5400+30:1800+30"]

1. d4 {[%emt 0:00:00]} Nf6 {[%emt 0:00:00]} 2. c4 {[%emt 0:00:00]} c5 {[%emt 0:00:00]} 3. d5 {[%emt 0:00:00]} e6 {[%emt 0:00:00]} 4. Nc3 {[%emt 0:00:00]} exd5 {[%emt 0:00:03]} 5. cxd5 {[%emt 0:00:06]} d6 {[%emt 0:00:03]} 6. e4 {[%emt 0:00:07]} g6 {[%emt 0:00:11]} 7. Nge2 {[%emt 0:00:06]} Bg7 {[%emt 0:07:01]} 8. Ng3 {[%emt 0:00:08]} h5 {[%emt 0:01:33]} 9. Be2 {[%emt 0:00:26]} O-O {[%emt 0:02:02]} 10. O-O {[%emt 0:02:12]} a6 {[%emt 0:02:01]} 11. a4 {[%emt 0:00:05]} h4 {[%emt 0:02:26]} 12. Nh1 {[%emt 0:00:06]} Nh7 {[%emt 0:01:02]} 13. Be3 {[%emt 0:02:38]} Nd7 {[%emt 0:06:07]} 14. f3 {[%emt 0:01:39]} Qe7 {[%emt 0:03:23]} 15. Qd2 {[%emt 0:01:46]} Ne5 {[%emt 0:00:35]} 16. Nf2 {[%emt 0:04:18]} f5 {[%emt 0:01:10]} 17. exf5 {[%emt 0:08:51]} Bxf5 {[%emt 0:02:57]} 18. Nfe4 {[%emt 0:01:50]} Rae8 {[%emt 0:06:37]} 19. Bh6 {[%emt 0:04:42]} Bxh6 {[%emt 0:05:34]} 20. Qxh6 {[%emt 0:00:08]} Nf7 {[%emt 0:00:32]} 21. Qd2 {[%emt 0:01:50]} Nfg5 {[%emt 0:07:17]} 22. Rae1 {[%emt 0:30:49]} Bxe4 {[%emt 0:18:45]} 23. Bd3 {[%emt 0:11:36]} Qg7 {[%emt 0:01:37]} 24. Bxe4 {[%emt 0:00:11]} Qd4+ {[%emt 0:01:24]} 25. Qxd4 {[%emt 0:00:22]} cxd4 {[%emt 0:00:06]} 26. Nb1 {[%emt 0:00:08]} Nxe4 {[%emt 0:00:38]} 27. fxe4 {[%emt 0:01:21]} Rxf1+ {[%emt 0:00:15]} 28. Kxf1 {[%emt 0:00:13]} Nf6 {[%emt 0:04:04]} 29. Nd2 {[%emt 0:01:54]} Ng4 {[%emt 0:01:33]} 30. Nc4 {[%emt 0:03:12]} Rd8 {[%emt 0:07:32]} 31. Ke2 {[%emt 0:04:40]} Nxh2 {[%emt 0:03:30]} 32. Kd3 {[%emt 0:02:15]} g5 {[%emt 0:04:11]} 33. Kxd4 {[%emt 0:03:32]} Ng4 {[%emt 0:01:29]} 34. Rf1 {[%emt 0:03:16]} Kg7 {[%emt 0:01:08]} 35. a5 {[%emt 0:03:30]} Kg6 {[%emt 0:01:20]} 36. Rf3 {[%emt 0:04:04]} Nf6 {[%emt 0:01:11] normal} 0-1

[Event "GER-ch Youth ODJM 2019"]
[Site "Willingen"]
[Date "2019.06.10"]
[Round "3.11"]
[White "Behringer, Tom"]
[Black "Hartmann, Jakob"]
[Result "0-1"]
[ECO "D31"]
[WhiteElo "1766"]
[BlackElo "2144"]
[Annotator "ChessBase"]
[PlyCount "72"]
[EventDate "2019.06.07"]
[EventType "swiss"]
[EventRounds "9"]
[EventCountry "GER"]
[SourceTitle "playchess.com"]
[Source "ChessBase"]
[SourceQuality "1"]
[TimeControl "40/5400+30:1800+30"]

1. d4 {[%emt 0:00:00]} d5 {[%emt 0:00:10]} 2. c4 {[%emt 0:00:22]} e6 {[%emt 0:00:29]} 3. Nc3 {[%emt 0:00:23]} c6 {[%emt 0:00:47]} 4. Nf3 {[%emt 0:00:27]} dxc4 {[%emt 0:01:10]} 5. a4 {[%emt 0:01:55]} Bb4 {[%emt 0:00:35]} 6. e3 {[%emt 0:00:20]} b5 {[%emt 0:01:04]} 7. Bd2 {[%emt 0:00:22]} a5 {[%emt 0:01:24]} 8. axb5 {[%emt 0:00:19]} Bxc3 {[%emt 0:00:34]} 9. Bxc3 {[%emt 0:00:21]} cxb5 {[%emt 0:00:43]} 10. b3 {[%emt 0:00:25]} Bb7 {[%emt 0:00:47]} 11. bxc4 {[%emt 0:00:09]} b4 {[%emt 0:00:18]} 12. Bb2 {[%emt 0:00:07]} Nf6 {[%emt 0:02:11]} 13. Bd3 {[%emt 0:00:35]} O-O {[%emt 0:01:26]} 14. O-O {[%emt 0:01:47]} Nbd7 {[%emt 0:01:44]} 15. Nd2 {[%emt 0:03:55]} Qc7 {[%emt 0:02:43]} 16. f3 e5 {[%emt 0:01:20]} 17. Bc2 {[%emt 0:24:17]} Rfe8 {[%emt 0:11:43]} 18. Ba4 {[%emt 0:12:30]} Bc6 {[%emt 0:06:08]} 19. Re1 {[%emt 0:13:17]} exd4 {[%emt 0:08:40]} 20. Bxd4 {[%emt 0:00:08]} Bxa4 {[%emt 0:01:10]} 21. Qxa4 {[%emt 0:00:31]} Nc5 {[%emt 0:07:29]} 22. Qc2 {[%emt 0:07:29]} Nfd7 {[%emt 0:05:02]} 23. Nb3 {[%emt 0:03:20]} Nxb3 {[%emt 0:05:18]} 24. Qxb3 {[%emt 0:00:06]} Nc5 {[%emt 0:00:17]} 25. Bxc5 {[%emt 0:01:10]} Qxc5 {[%emt 0:00:18]} 26. Ra2 {[%emt 0:07:34]} h6 {[%emt 0:06:43]} 27. Kf2 {[%emt 0:01:16]} Red8 {[%emt 0:02:51]} 28. Rc1 {[%emt 0:06:00]} Rd6 {[%emt 0:03:07]} 29. Rca1 {[%emt 0:02:45]} Qc7 {[%emt 0:04:21]} 30. Kg1 {[%emt 0:03:08]} Rc6 {[%emt 0:01:47]} 31. Rc1 {[%emt 0:00:21]} Rc5 {[%emt 0:00:54]} 32. Rd2 {[%emt 0:01:37]} Qb6 {[%emt 0:04:06]} 33. Rb1 {[%emt 0:01:54]} Qe6 {[%emt 0:02:43]} 34. Rd4 {[%emt 0:01:35]} a4 {[%emt 0:02:22]} 35. Qd3 {[%emt 0:01:37]} b3 {[%emt 0:02:02]} 36. Ra1 {[%emt 0:01:14]} Rcc8 {[%emt 0:03:35] normal} 0-1

[Event "GER-ch Youth ODJM 2019"]
[Site "Willingen"]
[Date "2019.06.10"]
[Round "3.12"]
[White "Ortmeier, Leonhard"]
[Black "Grund, Sebastian"]
[Result "1-0"]
[ECO "A05"]
[WhiteElo "2140"]
[BlackElo "2051"]
[Annotator "NA"]
[PlyCount "30"]
[EventDate "2019.06.07"]
[EventType "swiss"]
[EventRounds "9"]
[EventCountry "GER"]
[SourceTitle "playchess.com"]
[Source "ChessBase"]
[SourceQuality "1"]
[TimeControl "40/5400+30:1800+30"]

1. Nf3 {[%emt 0:00:00]} Nf6 {[%emt 0:00:00]} 2. c4 {[%emt 0:00:21]} g6 {[%emt 0:00:20]} 3. g3 {[%emt 0:00:26]} c5 {[%emt 0:00:45]} 4. Nc3 {[%emt 0:00:19]} Bg7 {[%emt 0:00:29]} 5. Bg2 {[%emt 0:00:17]} O-O {[%emt 0:00:10]} 6. O-O {[%emt 0:00:10]} d5 {[%emt 0:00:36]} 7. Nxd5 {[%emt 0:03:05]} Nxd5 {[%emt 0:01:47]} 8. cxd5 {[%emt 0:01:16]} Qxd5 {[%emt 0:00:10]} 9. d3 {[%emt 0:00:09]} e5 {[%emt 0:02:33]} 10. Be3 {[%emt 0:01:16]} Nd7 {[%emt 0:12:46]} 11. Qa4 {[%emt 0:05:55]} a6 {[%emt 0:03:37]} 12. Rac1 {[%emt 0:02:25]} Rb8 {[%emt 0:02:22]} 13. Ng5 {[%emt 0:04:03]} Qd6 {[%emt 0:03:47]} 14. Ne4 {[%emt 0:00:52]} Qe7 {[%emt 0:00:26]} 15. Nxc5 {[%emt 0:01:22]} Rd8 {[%emt 0:01:43] normal} 1-0

[Event "GER-ch Youth ODJM 2019"]
[Site "Willingen"]
[Date "2019.06.10"]
[Round "3.13"]
[White "Dietz, Florian"]
[Black "Schrepp, Florian"]
[Result "1-0"]
[ECO "B06"]
[WhiteElo "2139"]
[BlackElo "1922"]
[Annotator "NA"]
[PlyCount "28"]
[EventDate "2019.06.07"]
[EventType "swiss"]
[EventRounds "9"]
[EventCountry "GER"]
[SourceTitle "playchess.com"]
[Source "ChessBase"]
[SourceQuality "1"]
[TimeControl "40/5400+30:1800+30"]

1. e4 {[%emt 0:00:00]} g6 {[%emt 0:00:00]} 2. d4 {[%emt 0:00:00]} Bg7 {[%emt 0:00:00]} 3. Nc3 {[%emt 0:00:19]} d6 {[%emt 0:00:00]} 4. Nf3 {[%emt 0:00:23]} Nc6 {[%emt 0:00:27]} 5. d5 {[%emt 0:05:00]} Ne5 {[%emt 0:00:29]} 6. Nxe5 {[%emt 0:00:25]} Bxe5 {[%emt 0:00:07]} 7. Be3 {[%emt 0:00:41]} e6 {[%emt 0:01:40]} 8. dxe6 {[%emt 0:04:12]} Bxe6 {[%emt 0:02:09]} 9. Qd2 {[%emt 0:00:58]} f5 {[%emt 0:17:23]} 10. exf5 {[%emt 0:05:21]} Bxf5 {[%emt 0:00:51]} 11. Bc4 {[%emt 0:00:49]} c6 {[%emt 0:08:46]} 12. f4 {[%emt 0:04:10]} Bf6 {[%emt 0:05:57]} 13. O-O-O {[%emt 0:01:33]} d5 {[%emt 0:00:51]} 14. Qe2 {[%emt 0:36:59]} Kf8 {[%emt 0:15:48] normal} 1-0

[Event "GER-ch Youth ODJM 2019"]
[Site "Willingen"]
[Date "2019.06.10"]
[Round "3.14"]
[White "Teichert, Felix"]
[Black "Stemmler, Fabian"]
[Result "1/2-1/2"]
[ECO "E04"]
[WhiteElo "2027"]
[BlackElo "2014"]
[Annotator "NA"]
[PlyCount "30"]
[EventDate "2019.06.07"]
[EventType "swiss"]
[EventRounds "9"]
[EventCountry "GER"]
[SourceTitle "playchess.com"]
[Source "ChessBase"]
[SourceQuality "1"]
[TimeControl "40/5400+30:1800+30"]

1. d4 {[%emt 0:00:00]} d5 {[%emt 0:00:27]} 2. c4 {[%emt 0:00:00]} e6 {[%emt 0:04:01]} 3. Nf3 {[%emt 0:00:20]} Nf6 {[%emt 0:00:09]} 4. g3 {[%emt 0:00:39]} dxc4 {[%emt 0:00:36]} 5. Bg2 {[%emt 0:01:28]} Nc6 {[%emt 0:03:13]} 6. O-O {[%emt 0:01:21]} Rb8 {[%emt 0:01:26]} 7. a4 {[%emt 0:05:25]} Be7 {[%emt 0:06:11]} 8. Na3 {[%emt 0:00:23]} Na5 {[%emt 0:01:09]} 9. Bg5 {[%emt 0:05:02]} h6 {[%emt 0:04:55]} 10. Bxf6 {[%emt 0:01:37]} Bxf6 {[%emt 0:01:02]} 11. Qc2 {[%emt 0:04:24]} c5 {[%emt 0:14:24]} 12. dxc5 {[%emt 0:19:48]} Qc7 {[%emt 0:06:25]} 13. Rab1 {[%emt 0:02:25]} Be7 {[%emt 0:15:09]} 14. Rfc1 {[%emt 0:07:44]} Nb3 {[%emt 0:07:16]} 15. Rd1 {[%emt 0:01:13]} Qxc5 {[%emt 0:00:38] normal} 1/2-1/2

[Event "GER-ch Youth ODJM 2019"]
[Site "Willingen"]
[Date "2019.06.10"]
[Round "3.15"]
[White "Garbuz, Vitaliy"]
[Black "Baumann, Marcel"]
[Result "1-0"]
[ECO "B01"]
[WhiteElo "2051"]
[BlackElo "1866"]
[Annotator "NA"]
[PlyCount "37"]
[EventDate "2019.06.07"]
[EventType "swiss"]
[EventRounds "9"]
[EventCountry "GER"]
[SourceTitle "playchess.com"]
[Source "ChessBase"]
[SourceQuality "1"]
[TimeControl "40/5400+30:1800+30"]

1. e4 {[%emt 0:00:00]} d5 {[%emt 0:00:00]} 2. exd5 {[%emt 0:00:00]} Nf6 {[%emt 0:00:00]} 3. d4 {[%emt 0:00:00]} Bg4 {[%emt 0:00:00]} 4. Nf3 {[%emt 0:00:00]} Qxd5 {[%emt 0:00:00]} 5. Be2 {[%emt 0:00:22]} Nc6 {[%emt 0:00:00]} 6. c4 {[%emt 0:02:34]} Qd7 {[%emt 0:00:00]} 7. Be3 {[%emt 0:01:32]} e6 {[%emt 0:01:21]} 8. Nc3 {[%emt 0:09:42]} Be7 {[%emt 0:06:58]} 9. O-O {[%emt 0:03:26]} Bxf3 {[%emt 0:03:11]} 10. Bxf3 {[%emt 0:00:26]} O-O-O {[%emt 0:01:21]} 11. Qa4 {[%emt 0:10:23]} Nxd4 {[%emt 0:11:55]} 12. Qxa7 {[%emt 0:02:02]} Nxf3+ {[%emt 0:00:09]} 13. gxf3 {[%emt 0:00:07]} Qc6 {[%emt 0:00:18]} 14. Rfd1 {[%emt 0:22:13]} Qa6 {[%emt 0:04:50]} 15. Qxa6 {[%emt 0:01:11]} bxa6 {[%emt 0:03:06]} 16. Ne2 {[%emt 0:11:14]} Kb7 {[%emt 0:07:29]} 17. Nd4 {[%emt 0:03:04]} Nd7 {[%emt 0:05:58]} 18. f4 {[%emt 0:01:06]} Bf6 {[%emt 0:06:19]} 19. Nb3 {[%emt 0:05:16] normal} 1-0

[Event "GER-ch Youth ODJM 2019"]
[Site "Willingen"]
[Date "2019.06.10"]
[Round "3.16"]
[White "Reinecke, Katharina"]
[Black "von Estorff, Jacob"]
[Result "1/2-1/2"]
[ECO "D70"]
[WhiteElo "1846"]
[BlackElo "2041"]
[Annotator "NA"]
[PlyCount "30"]
[EventDate "2019.06.07"]
[EventType "swiss"]
[EventRounds "9"]
[EventCountry "GER"]
[SourceTitle "playchess.com"]
[Source "ChessBase"]
[SourceQuality "1"]
[TimeControl "40/5400+30:1800+30"]

1. d4 {[%emt 0:00:00]} Nf6 {[%emt 0:00:00]} 2. c4 {[%emt 0:00:00]} g6 {[%emt 0:00:00]} 3. Nf3 {[%emt 0:00:04]} Bg7 {[%emt 0:00:00]} 4. g3 {[%emt 0:00:27]} O-O {[%emt 0:00:17]} 5. Bg2 {[%emt 0:00:16]} c6 {[%emt 0:00:36]} 6. O-O {[%emt 0:01:04]} d5 {[%emt 0:00:09]} 7. b3 {[%emt 0:02:48]} Ne4 {[%emt 0:02:06]} 8. Bb2 {[%emt 0:03:52]} Nd7 {[%emt 0:00:49]} 9. Nbd2 {[%emt 0:02:42]} f5 {[%emt 0:02:50]} 10. cxd5 {[%emt 0:05:09]} cxd5 {[%emt 0:00:09]} 11. Rc1 {[%emt 0:01:39]} b6 {[%emt 0:01:38]} 12. Ne5 {[%emt 0:05:26]} Nxe5 {[%emt 0:04:01]} 13. dxe5 {[%emt 0:00:05]} Nxd2 {[%emt 0:04:22]} 14. Qxd2 {[%emt 0:00:15]} Bb7 {[%emt 0:01:50]} 15. Rc2 {[%emt 0:05:22]} e6 {[%emt 0:03:51] normal} 1/2-1/2

[Event "GER-ch Youth ODJM 2019"]
[Site "Willingen"]
[Date "2019.06.11"]
[Round "4.1"]
[White "Astner, Sebastian"]
[Black "Lauterbach, Kolja"]
[Result "1-0"]
[ECO "C55"]
[WhiteElo "1870"]
[BlackElo "1662"]
[Annotator "NA"]
[PlyCount "83"]
[EventDate "2019.06.07"]
[EventType "swiss"]
[EventRounds "9"]
[EventCountry "GER"]
[SourceTitle "playchess.com"]
[Source "ChessBase"]
[SourceQuality "1"]
[TimeControl "40/5400+30:1800+30"]

1. e4 {[%emt 0:00:00]} e5 {[%emt 0:00:00]} 2. Nf3 {[%emt 0:00:00]} Nc6 {[%emt 0:00:00]} 3. d4 {[%emt 0:00:00]} exd4 {[%emt 0:00:00]} 4. Bc4 {[%emt 0:00:00]} Nf6 {[%emt 0:00:00]} 5. e5 {[%emt 0:00:24]} d5 {[%emt 0:00:00]} 6. Bb5 {[%emt 0:00:00]} Ne4 {[%emt 0:00:01]} 7. Nxd4 {[%emt 0:00:00]} Bd7 {[%emt 0:00:07]} 8. Bxc6 {[%emt 0:00:00]} bxc6 {[%emt 0:00:05]} 9. O-O {[%emt 0:00:00]} Bc5 {[%emt 0:00:11]} 10. f3 {[%emt 0:00:36]} Ng5 {[%emt 0:00:07]} 11. f4 {[%emt 0:00:03]} Ne4 {[%emt 0:00:04]} 12. Be3 {[%emt 0:00:37]} Bb6 {[%emt 0:00:14]} 13. c3 {[%emt 0:01:47]} O-O {[%emt 0:00:42]} 14. Nd2 {[%emt 0:00:47]} Nxd2 {[%emt 0:00:12]} 15. Qxd2 {[%emt 0:00:06]} c5 {[%emt 0:00:22]} 16. Nb3 {[%emt 0:01:05]} c4 {[%emt 0:00:36]} 17. Nc5 {[%emt 0:02:42]} Bc6 {[%emt 0:03:58]} 18. Bd4 {[%emt 0:04:46]} Bxc5 {[%emt 0:00:56]} 19. Bxc5 {[%emt 0:00:06]} Re8 {[%emt 0:00:05]} 20. Rae1 {[%emt 0:02:29]} f6 {[%emt 0:01:52]} 21. e6 {[%emt 0:02:32]} f5 {[%emt 0:01:47]} 22. e7 {[%emt 0:01:24]} Qd7 {[%emt 0:00:30]} 23. Qd4 {[%emt 0:01:05]} Rab8 {[%emt 0:01:42]} 24. Re2 {[%emt 0:01:53]} a6 {[%emt 0:00:36]} 25. Rf3 {[%emt 0:00:17]} Kf7 {[%emt 0:03:22]} 26. Rg3 {[%emt 0:00:55]} g6 {[%emt 0:01:20]} 27. Qe5 {[%emt 0:01:07]} Rg8 {[%emt 0:02:03]} 28. Rh3 {[%emt 0:00:33]} h5 {[%emt 0:00:26]} 29. Rhe3 {[%emt 0:08:51]} Rbe8 {[%emt 0:05:16]} 30. h4 {[%emt 0:01:53]} Bb7 {[%emt 0:02:53]} 31. Qd4 {[%emt 0:01:56]} Bc8 {[%emt 0:03:40]} 32. Re5 {[%emt 0:01:33]} c6 {[%emt 0:01:44]} 33. R5e3 {[%emt 0:00:22]} Qc7 {[%emt 0:01:10]} 34. g3 {[%emt 0:01:12]} Qb8 {[%emt 0:01:51]} 35. b3 {[%emt 0:02:46]} Qb5 {[%emt 0:03:50]} 36. a4 {[%emt 0:01:34]} Qb8 {[%emt 0:07:08]} 37. bxc4 {[%emt 0:00:22]} Qc7 {[%emt 0:01:26]} 38. cxd5 {[%emt 0:00:15]} cxd5 {[%emt 0:00:16]} 39. Qxd5+ {[%emt 0:00:05]} Kg7 {[%emt 0:00:04]} 40. Bd4+ {[%emt 0:00:09]} Kh6 {[%emt 0:00:32]} 41. Qf7 {[%emt 0:30:19]} Bb7 {[%emt 0:30:53]} 42. Bf6 {normal} 1-0

[Event "GER-ch Youth ODJM 2019"]
[Site "Willingen"]
[Date "2019.06.11"]
[Round "4.2"]
[White "Wichert, Eddi"]
[Black "Zell, Mirjam"]
[Result "1-0"]
[ECO "C50"]
[WhiteElo "1702"]
[BlackElo "1660"]
[Annotator "NA"]
[PlyCount "79"]
[EventDate "2019.06.07"]
[EventType "swiss"]
[EventRounds "9"]
[EventCountry "GER"]
[SourceTitle "playchess.com"]
[Source "ChessBase"]
[SourceQuality "1"]
[TimeControl "40/5400+30:1800+30"]

1. e4 {[%emt 0:00:00]} e5 {[%emt 0:00:00]} 2. Nf3 {[%emt 0:00:00]} Nc6 {[%emt 0:00:02]} 3. Bc4 {[%emt 0:00:08]} Bc5 {[%emt 0:00:31]} 4. O-O {[%emt 0:00:28]} Nf6 {[%emt 0:01:06]} 5. d3 {[%emt 0:03:06]} d6 {[%emt 0:01:09]} 6. h3 {[%emt 0:00:49]} h6 {[%emt 0:00:11]} 7. c3 {[%emt 0:00:22]} a6 {[%emt 0:00:29]} 8. d4 {[%emt 0:01:08]} exd4 {[%emt 0:04:55]} 9. cxd4 {[%emt 0:00:46]} Ba7 {[%emt 0:00:11]} 10. Re1 {[%emt 0:01:26]} O-O {[%emt 0:09:45]} 11. Nc3 {[%emt 0:01:48]} Re8 {[%emt 0:04:30]} 12. Bf4 {[%emt 0:01:23]} Ne7 {[%emt 0:04:21]} 13. Qb3 {[%emt 0:12:15]} Rf8 {[%emt 0:02:04]} 14. e5 {[%emt 0:18:34]} Nh5 {[%emt 0:09:57]} 15. Bh2 {[%emt 0:04:00]} b5 {[%emt 0:05:07]} 16. Bd5 {[%emt 0:18:53]} Nxd5 {[%emt 0:04:49]} 17. Qxd5 {[%emt 0:01:12]} Be6 {[%emt 0:01:18]} 18. Qc6 {[%emt 0:03:43]} Bd7 {[%emt 0:14:34]} 19. Qd5 {[%emt 0:03:34]} Be6 {[%emt 0:09:43]} 20. Qc6 {[%emt 0:00:10]} Bd7 {[%emt 0:01:23]} 21. Qe4 {[%emt 0:01:10]} c5 {[%emt 0:04:22]} 22. dxc5 {[%emt 0:07:59]} dxe5 {[%emt 0:01:54]} 23. Qxe5 {[%emt 0:00:36]} Nf6 {[%emt 0:00:45]} 24. Nd5 {[%emt 0:02:44]} Nxd5 {[%emt 0:05:14]} 25. Qxd5 {[%emt 0:00:05]} Qc8 {[%emt 0:00:17]} 26. Bd6 {[%emt 0:01:09]} Rd8 {[%emt 0:01:05]} 27. Re7 {[%emt 0:01:45]} Be6 {[%emt 0:00:46]} 28. Qe5 {[%emt 0:02:58]} Rd7 {[%emt 0:01:38]} 29. Rxd7 {[%emt 0:02:10]} Qxd7 {[%emt 0:00:13]} 30. Rc1 {[%emt 0:00:35]} Re8 {[%emt 0:01:54]} 31. c6 {[%emt 0:00:52]} Qc8 {[%emt 0:00:57]} 32. c7 {[%emt 0:01:35]} Bxh3 {[%emt 0:01:45]} 33. gxh3 {[%emt 0:02:15]} Rxe5 {[%emt 0:02:10]} 34. Nxe5 {[%emt 0:00:06]} Bb6 {[%emt 0:00:42]} 35. Nc6 {[%emt 0:00:22]} Kh7 {[%emt 0:06:48]} 36. Ne7 {[%emt 0:00:04]} Qxh3 {[%emt 0:00:15]} 37. c8=Q {[%emt 0:00:13]} Bxf2+ {[%emt 0:01:03]} 38. Kxf2 {[%emt 0:00:06]} Qh4+ {[%emt 0:00:12]} 39. Kf3 {[%emt 0:03:29]} Qh5+ {[%emt 0:00:24]} 40. Qg4 {[%emt 0:00:15] normal} 1-0